fUST/lending_fUST_20240602
["ID","MTS","AMOUNT","RATE_DAILY","PERIOD"]
[328390899,1717321844761,-500.0,0.00021917,2]
[328390900,1717321844770,-500.0,0.00021917,2]
[328390901,1717321844779,-500.0,0.00021917,2]
[328390902,1717321844788,-500.0,0.00021917,2]
[328390903,1717321844797,-500.0,0.00021917,2]
[328390904,1717321844807,-500.0,0.00021917,2]
[328390905,1717321844816,-675.63,0.00021917,2]
[328390906,1717321844825,-500.0,0.00021917,2]
[328390907,1717321844834,-500.0,0.00021917,2]
[328390908,1717321844843,-707.14,0.00021917,2]
[328390909,1717321844853,-500.0,0.00021917,2]
[328390910,1717321844862,-572.68,0.00021917,2]
[328390911,1717321844872,-42.5210607,0.00021917,2]
[328390933,1717322470726,190.29205941,0.000156,2]
[328390935,1717322887704,169.19296922,0.000156,2]
[328390978,1717323040022,-1405.29436376,0.0001983,2]
[328390981,1717323040034,-467.0051987,0.0001983,2]
[328390982,1717323040043,-1053.35096588,0.00019831,2]
[328390983,1717323040054,-6143.39528785,0.00019831,2]
[328391063,1717323044008,-3278.11436209,0.00019831,2]
[328391064,1717323044018,-190.29205941,0.00019832,2]
[328391065,1717323044027,-1659.68897534,0.00019841,2]
[328391069,1717323046637,-424.89784824,0.00019841,2]
[328391073,1717323743425,190.29205941,0.000156,2]
[328391094,1717324232698,-150.0,0.00019485,2]
[328391095,1717324232709,-190.29205941,0.00019564,2]
[328391097,1717324232718,-3001.51794059,0.00019588,2]
[328391098,1717324232729,-1319.83339075,0.00019588,2]
[328391100,1717324232738,-7158.2630164,0.00020085,2]
[328391102,1717324232747,-222.76722564,0.000209,2]
[328391103,1717324232756,-22892.94089772,0.00021,2]
[328391105,1717324232765,-1000.0,0.00021,2]
[328391107,1717324232775,-1723.28099482,0.00021009,2]
[328391109,1717324232784,-620.00229833,0.00021179,2]
[328391111,1717324232793,-9568.4519872,0.00021609,2]
[328391112,1717324232802,-397.89278288,0.000218,2]
[328391114,1717324232811,-397.89278284,0.00021804,2]
[328391115,1717324232820,-397.89278284,0.00021809,2]
[328391116,1717324232830,-397.89278284,0.00021813,2]
[328391117,1717324232839,-397.89278284,0.00021817,2]
[328391118,1717324232853,-2000.0,0.00021818,2]
[328391119,1717324232864,-282.0,0.000219,2]
[328391120,1717324232873,-954.62324154,0.00021915,2]
[328391121,1717324232882,-1153.28512896,0.00021915,2]
[328391122,1717324232892,-425.23490123,0.00021915,2]
[328391123,1717324232902,-4006.71798143,0.00021915,2]
[328391124,1717324232911,-2505.45290604,0.00021915,2]
[328391125,1717324232920,-891.79443738,0.00021915,2]
[328391126,1717324232929,-371.62879169,0.00021915,2]
[328391127,1717324232939,-395.55514246,0.00021915,2]
[328391128,1717324232948,-215.95975088,0.00021915,2]
[328391129,1717324232959,-3776.33196445,0.00021915,2]
[328391130,1717324232968,-1871.01679575,0.00021915,2]
[328391131,1717324232977,-283.86669786,0.00021915,2]
[328391132,1717324232986,-528.89075591,0.00021915,2]
[328391133,1717324232995,-490.5000166,0.00021915,2]
[328391134,1717324233004,-328.26544087,0.00021915,2]
[328391135,1717324233013,-245.07172502,0.00021915,2]
[328391136,1717324233023,-2240.2784567,0.00021915,2]
[328391142,1717324239551,-1058.862999,0.00021,7]
[328391144,1717324239563,-1059.47717429,0.00021,7]
[328391145,1717324239572,-14760.46392947,0.00021915,2]
[328391146,1717324239582,-2033.82676521,0.00021915,2]
[328391147,1717324239591,-151.0,0.00021915,2]
[328391148,1717324239600,-151.0,0.00021915,2]
[328391149,1717324239609,-151.0,0.00021915,2]
[328391150,1717324239619,-153.765053,0.00021915,2]
[328391151,1717324239628,-151.0,0.00021915,2]
[328391152,1717324239638,-151.0,0.00021915,2]
[328391153,1717324239647,-562.386121,0.00021915,2]
[328391154,1717324239657,-562.386121,0.00021915,2]
[328391155,1717324239667,-151.0,0.00021915,2]
[328391157,1717324239676,-151.0,0.00021915,2]
[328391159,1717324239686,-562.386121,0.00021915,2]
[328391160,1717324239695,-562.386121,0.00021915,2]
[328391162,1717324239705,-203.98655734,0.00021916,2]
[328391164,1717324239716,-500.0,0.00021916,2]
[328391165,1717324239726,-408.51246628,0.00021916,2]
[328391166,1717324239736,-387.8326086,0.00021916,2]
[328391167,1717324239746,-500.0,0.00021916,2]
[328391168,1717324239755,-500.0,0.00021916,2]
[328391169,1717324239765,-489.85248836,0.00021916,2]
[328391170,1717324239774,-500.0,0.00021916,2]
[328391171,1717324239783,-500.0,0.00021916,2]
[328391172,1717324239793,-500.0,0.00021916,2]
[328391173,1717324239802,-151.0,0.00021916,2]
[328391174,1717324239811,-562.386121,0.00021916,2]
[328391175,1717324239820,-151.0,0.00021916,2]
[328391176,1717324239830,-562.386121,0.00021916,2]
[328391177,1717324239840,-9004.00514442,0.00021917,7]
[328391178,1717324239854,-461.74457998,0.00021917,2]
[328391179,1717324239864,-752.94,0.00021917,2]
[328391180,1717324239875,-647.48,0.00021917,2]
[328391181,1717324239884,-500.0,0.00021917,2]
[328391182,1717324239895,-500.0,0.00021917,2]
[328391183,1717324239904,-331.33800866,0.00021917,2]
[328391299,1717324244135,-168.66199134,0.00021917,2]
[328391300,1717324244144,-1187.64,0.00021917,2]
[328391301,1717324244153,-751.36,0.00021917,2]
[328391302,1717324244163,-500.0,0.00021917,2]
[328391303,1717324244172,-300.0,0.00021917,2]
[328391304,1717324244181,-95.47983414,0.00021917,2]
[328391320,1717324246789,-404.52016586,0.00021917,2]
[328391321,1717324246799,-500.0,0.00021917,2]
[328391322,1717324246809,-334.9511992,0.00021917,2]
[328391323,1717324246819,-500.0,0.00021917,2]
[328391324,1717324246828,-960.81,0.00021917,2]
[328391325,1717324246838,-500.0,0.00021917,2]
[328391326,1717324246851,-500.0,0.00021917,2]
[328391327,1717324246861,-500.0,0.00021917,2]
[328391328,1717324246871,-404.040265,0.00021917,2]
[328391329,1717324246880,-500.0,0.00021917,2]
[328391330,1717324246889,-500.0,0.00021917,2]
[328391332,1717324247123,-500.0,0.00021917,2]
[328391333,1717324247133,-500.0,0.00021917,2]
[328391334,1717324247143,-500.0,0.00021917,2]
[328391335,1717324247152,-500.0,0.00021917,2]
[328391336,1717324247162,-500.0,0.00021917,2]
[328391337,1717324247171,-573.64,0.00021917,2]
[328391338,1717324247180,-500.0,0.00021917,2]
[328391339,1717324247189,-500.0,0.00021917,2]
[328391340,1717324247198,-500.0,0.00021917,2]
[328391341,1717324247207,-500.0,0.00021917,2]
[328391342,1717324247216,-501.09237778,0.00021917,2]
[328391343,1717324247226,-500.0,0.00021917,2]
[328391344,1717324247236,-500.15122458,0.00021917,2]
[328391345,1717324247245,-501.75527844,0.00021917,2]
[328391346,1717324247254,-500.0,0.00021917,2]
[328391347,1717324247263,-420.53949794,0.00021917,2]
[328391348,1717324247272,-524.48,0.00021917,2]
[328391349,1717324247281,-500.0,0.00021917,2]
[328391350,1717324247290,-500.0,0.00021917,2]
[328391351,1717324247299,-545.45,0.00021917,2]
[328391352,1717324247308,-966.26,0.00021917,2]
[328391353,1717324247317,-642.28,0.00021917,2]
[328391354,1717324247326,-628.82933101,0.00021917,2]
[328391492,1717324635788,31301.84229447,0.00030065,30]
[328391498,1717324637747,3684.26765601,0.00030065,30]
[328391600,1717324879539,190.29205941,0.000156,2]
[328391635,1717325310366,273.37336231,9.9e-05,2]
[328391640,1717325326538,273.37336231,9.9e-05,2]
[328391641,1717325334521,273.37336231,9.9e-05,2]
[328391702,1717325432101,-190.29205941,0.00021125,2]
[328391704,1717325432111,-637.46735685,0.00021126,2]
[328391706,1717325432120,-498.0,0.00021368,2]
[328391708,1717325432129,-209.883,0.00021368,2]
[328391710,1717325432138,-150.0,0.00021612,2]
[328391712,1717325432148,-22892.94089772,0.00021719,2]
[328391714,1717325432157,-4233.16048784,0.0002172,2]
[328391716,1717325432166,-269.17706431,0.00021817,2]
[328391718,1717325432174,-330.84434099,0.00021817,2]
[328391720,1717325432183,-194.0,0.00021825,5]
[328391722,1717325432193,-235.29734044,0.0002189,2]
[328391724,1717325432202,-282.0,0.000219,2]
[328391726,1717325432211,-239.21076541,0.00021915,2]
[328391728,1717325432221,-156.68407224,0.00021915,2]
[328391730,1717325432230,-685.62790104,0.00021916,2]
[328391732,1717325432240,-4502.00257221,0.00021917,7]
[328391734,1717325432249,-500.0,0.00021917,2]
[328391736,1717325432258,-500.0,0.00021917,2]
[328391738,1717325432267,-500.0,0.00021917,2]
[328391740,1717325432276,-500.0,0.00021917,2]
[328391742,1717325432288,-500.0,0.00021917,2]
[328391744,1717325432297,-500.0,0.00021917,2]
[328391747,1717325432307,-500.0,0.00021917,2]
[328391749,1717325432317,-500.0,0.00021917,2]
[328391750,1717325432326,-500.0,0.00021917,2]
[328391752,1717325432336,-500.0,0.00021917,2]
[328391754,1717325432345,-500.0,0.00021917,2]
[328391757,1717325432354,-500.0,0.00021917,2]
[328391758,1717325432364,-561.96,0.00021917,2]
[328391761,1717325432373,-500.0,0.00021917,2]
[328391762,1717325432382,-500.0,0.00021917,2]
[328391765,1717325432391,-502.6634333,0.00021917,2]
[328391767,1717325432400,-501.84693626,0.00021917,2]
[328391769,1717325432410,-501.81674137,0.00021917,2]
[328391771,1717325432419,-500.0,0.00021917,2]
[328391772,1717325432428,-500.0,0.00021917,2]
[328391774,1717325432438,-500.0,0.00021917,2]
[328391777,1717325432447,-500.0,0.00021917,2]
[328391778,1717325432456,-500.0,0.00021917,2]
[328391781,1717325432466,-500.0,0.00021917,2]
[328391783,1717325432481,-500.0,0.00021917,2]
[328391785,1717325432490,-500.0,0.00021917,2]
[328391787,1717325432499,-500.0,0.00021917,2]
[328391789,1717325432508,-500.0,0.00021917,2]
[328391791,1717325432518,-500.0,0.00021917,2]
[328391793,1717325432527,-500.0,0.00021917,2]
[328391795,1717325432536,-599.89,0.00021917,2]
[328391797,1717325432545,-500.0,0.00021917,2]
[328391799,1717325432558,-500.0,0.00021917,2]
[328391801,1717325432567,-926.0,0.00021917,2]
[328391803,1717325432576,-500.0,0.00021917,2]
[328391805,1717325432586,-500.0,0.00021917,2]
[328391807,1717325432595,-500.0,0.00021917,2]
[328391809,1717325432604,-500.0,0.00021917,2]
[328391811,1717325432613,-500.0,0.00021917,2]
[328391813,1717325432622,-500.0,0.00021917,2]
[328391829,1717325432807,-500.0,0.00021917,2]
[328391831,1717325432817,-615.52,0.00021917,2]
[328391833,1717325432826,-522.72,0.00021917,2]
[328391834,1717325432836,-1604.19,0.00021917,2]
[328391836,1717325432846,-585.01,0.00021917,2]
[328391838,1717325432856,-500.0,0.00021917,2]
[328391840,1717325432865,-500.0,0.00021917,2]
[328391841,1717325432875,-1008.44,0.00021917,2]
[328391842,1717325432884,-500.0,0.00021917,2]
[328391843,1717325432893,-500.0,0.00021917,2]
[328391844,1717325432902,-592.65,0.00021917,2]
[328391845,1717325432912,-500.0,0.00021917,2]
[328391846,1717325432921,-761.8,0.00021917,2]
[328391847,1717325432931,-725.73,0.00021917,2]
[328391848,1717325432940,-500.0,0.00021917,2]
[328391849,1717325432949,-286.09043308,0.00021917,2]
[328391877,1717325438297,-999.73140173,0.00021917,7]
[328391905,1717325446518,-797.84801866,0.00021917,7]
[328391907,1717325446531,-213.90956692,0.00021917,2]
[328391910,1717325446542,-500.0,0.00021917,2]
[328391911,1717325446551,-500.0,0.00021917,2]
[328391913,1717325446562,-500.0,0.00021917,2]
[328391916,1717325446571,-500.0,0.00021917,2]
[328391917,1717325446581,-500.0,0.00021917,2]
[328391919,1717325446590,-500.0,0.00021917,2]
[328391922,1717325446600,-500.0,0.00021917,2]
[328391924,1717325446609,-500.0,0.00021917,2]
[328391926,1717325446619,-500.0,0.00021917,2]
[328391928,1717325446628,-500.0,0.00021917,2]
[328391929,1717325446637,-1448.77,0.00021917,2]
[328391932,1717325446647,-1470.47,0.00021917,2]
[328391934,1717325446656,-500.0,0.00021917,2]
[328391936,1717325446666,-500.0,0.00021917,2]
[328391938,1717325446675,-500.0,0.00021917,2]
[328391940,1717325446685,-151.0,0.00021917,2]
[328391942,1717325446695,-584.47,0.00021917,2]
[328391944,1717325446705,-500.0,0.00021917,2]
[328391946,1717325446714,-500.0,0.00021917,2]
[328391949,1717325446723,-500.0,0.00021917,2]
[328391951,1717325446734,-500.0,0.00021917,2]
[328391953,1717325446743,-500.0,0.00021917,2]
[328391955,1717325446754,-721.04,0.00021917,2]
[328391957,1717325446763,-2285.5,0.00021917,2]
[328391959,1717325446773,-500.0,0.00021917,2]
[328391960,1717325446783,-500.0,0.00021917,2]
[328391961,1717325446792,-871.7,0.00021917,2]
[328391963,1717325446801,-500.0,0.00021917,2]
[328391965,1717325446811,-500.0,0.00021917,2]
[328391967,1717325446819,-500.0,0.00021917,2]
[328391969,1717325446829,-500.0,0.00021917,2]
[328391970,1717325446838,-500.0,0.00021917,2]
[328391972,1717325446847,-500.0,0.00021917,2]
[328391974,1717325446857,-500.0,0.00021917,2]
[328391976,1717325446866,-971.76,0.00021917,2]
[328391978,1717325446875,-521.48,0.00021917,2]
[328391979,1717325446885,-500.0,0.00021917,2]
[328391981,1717325446894,-1463.74,0.00021917,2]
[328391983,1717325446903,-739.45,0.00021917,2]
[328391985,1717325446913,-1413.94,0.00021917,2]
[328391987,1717325446922,-500.0,0.00021917,2]
[328391989,1717325446931,-500.0,0.00021917,2]
[328391991,1717325446940,-1139.65,0.00021917,2]
[328391992,1717325446950,-500.0,0.00021917,2]
[328391993,1717325446959,-500.0,0.00021917,2]
[328391994,1717325446968,-500.0,0.00021917,2]
[328391995,1717325446978,-500.0,0.00021917,2]
[328391996,1717325446988,-500.0,0.00021917,2]
[328391997,1717325446997,-500.0,0.00021917,2]
[328391998,1717325447006,-500.0,0.00021917,2]
[328391999,1717325447016,-500.0,0.00021917,2]
[328392000,1717325447026,-620.5,0.00021917,2]
[328392001,1717325447035,-500.0,0.00021917,2]
[328392002,1717325447045,-562.23491687,0.00021917,2]
[328392003,1717325447054,-500.0,0.00021917,2]
[328392004,1717325447063,-721.57,0.00021917,2]
[328392005,1717325447073,-500.0,0.00021917,2]
[328392006,1717325447082,-500.0,0.00021917,2]
[328392007,1717325447092,-500.0,0.00021917,2]
[328392008,1717325447100,-393.670285,0.00021917,2]
[328392009,1717325447110,-393.670285,0.00021917,2]
[328392011,1717325447119,-393.670285,0.00021917,2]
[328392013,1717325447129,-393.670285,0.00021917,2]
[328392015,1717325447138,-393.670285,0.00021917,2]
[328392017,1717325447146,-393.670285,0.00021917,2]
[328392018,1717325447155,-677.68,0.00021917,2]
[328392020,1717325447164,-217.08338891,0.00021917,2]
[328392025,1717325486016,2066.56429307,9.999e-05,2]
[328392040,1717325905310,500.0,0.00030064,30]
[328392045,1717326060115,190.29205941,0.000156,2]
[328392054,1717326338021,3378.86907174,0.000156,2]
[328392055,1717326338197,273.37336231,9.9e-05,2]
[328392056,1717326340821,155.39118204,0.000156,2]
[328392057,1717326347268,273.37336231,9.9e-05,2]
[328392058,1717326347694,4245.83699525,0.000156,2]
[328392060,1717326354412,154.98450155,0.000156,2]
[328392061,1717326355589,273.37336231,9.9e-05,2]
[328392062,1717326357921,244.79816249,0.000156,2]
[328392063,1717326357943,3134.07090925,0.000156,2]
[328392064,1717326363835,42.43310678,9.9e-05,2]
[328392065,1717326363873,230.94025553,9.9e-05,2]
[328392066,1717326372411,156.36025232,0.000156,2]
[328392067,1717326372935,273.37336231,9.9e-05,2]
[328392068,1717326373922,3141.63896035,0.000156,2]
[328392069,1717326382041,273.37336231,9.9e-05,2]
[328392070,1717326390279,273.37336231,9.9e-05,2]
[328392071,1717326398974,273.37336231,9.9e-05,2]
[328392072,1717326402981,164.43840834,9.999e-05,2]
[328392073,1717326404291,372.10530507,9.999e-05,2]
[328392074,1717326407216,273.37336231,9.9e-05,2]
[328392075,1717326412639,456.34042895,9.999e-05,2]
[328392076,1717326415703,273.37336231,9.9e-05,2]
[328392077,1717326424554,273.37336231,9.9e-05,2]
[328392078,1717326432511,273.37336231,9.9e-05,2]
[328392079,1717326440711,273.37336231,9.9e-05,2]
[328392080,1717326449808,273.37336231,9.9e-05,2]
[328392081,1717326459220,273.37336231,9.9e-05,2]
[328392083,1717326467813,273.37336231,9.9e-05,2]
[328392084,1717326477456,273.37336231,9.9e-05,2]
[328392085,1717326483941,924.32267941,9.9e-05,2]
[328392086,1717326483972,1975.81019496,9.9e-05,2]
[328392087,1717326485470,273.37336231,9.9e-05,2]
[328392088,1717326487393,174.08399824,9.9e-05,2]
[328392089,1717326487730,302.91535958,9.999e-05,2]
[328392090,1717326488458,1341.53230163,9.999e-05,2]
[328392091,1717326493730,273.37336231,9.9e-05,2]
[328392092,1717326501744,273.37336231,9.9e-05,2]
[328392093,1717326510740,273.37336231,9.9e-05,2]
[328392094,1717326519114,2638.13221309,0.000151,2]
[328392095,1717326520405,273.37336231,9.9e-05,2]
[328392096,1717326529296,273.37336231,9.9e-05,2]
[328392097,1717326537631,273.37336231,9.9e-05,2]
[328392098,1717326545811,273.37336231,9.9e-05,2]
[328392099,1717326554644,273.37336231,9.9e-05,2]
[328392100,1717326562787,273.37336231,9.9e-05,2]
[328392101,1717326571947,273.37336231,9.9e-05,2]
[328392102,1717326579938,273.37336231,9.9e-05,2]
[328392103,1717326588815,273.37336231,9.9e-05,2]
[328392104,1717326596768,273.37336231,9.9e-05,2]
[328392105,1717326604997,273.37336231,9.9e-05,2]
[328392106,1717326613011,263.48445496,9.9e-05,2]
[328392126,1717326632903,-164.43840834,0.00019494,2]
[328392127,1717326632913,-1284.266543,0.00019495,2]
[328392128,1717326632926,-173.812288,0.00019852,2]
[328392129,1717326632935,-275.4336992,0.00019904,2]
[328392130,1717326632944,-2639.57223461,0.00019999,2]
[328392131,1717326632954,-6890.89011053,0.0002,2]
[328392132,1717326632963,-4126.48756248,0.0002,10]
[328392133,1717326632974,-3000.0,0.00020049,2]
[328392134,1717326632983,-500.0,0.00020999,2]
[328392135,1717326632993,-1638.34,0.00020999,2]
[328392136,1717326633005,-16555.11,0.00020999,2]
[328392137,1717326633015,-207.00363463,0.00020999,2]
[328392260,1717326712975,1499.56203368,9.999e-05,2]
[328392264,1717327014536,500.98496443,9.999e-05,2]
[328392267,1717327381147,500.0,0.00030067,30]
[328392309,1717327832722,-272.9331,0.00019933,2]
[328392310,1717327832732,-4233.16048784,0.00020607,2]
[328392311,1717327832744,-253.08,0.00020684,2]
[328392312,1717327832755,-500.0,0.00020821,2]
[328392313,1717327832764,-217.09838963,0.00020897,2]
[328392314,1717327832774,-217.09838963,0.00020899,2]
[328392315,1717327832783,-668.88,0.00020988,3]
[328392316,1717327832793,-346.12788444,0.00020996,2]
[328392317,1717327832803,-1353.45685898,0.00020997,2]
[328392318,1717327832812,-637.72,0.00020997,2]
[328392319,1717327832822,-1290.7,0.00020997,2]
[328392320,1717327832831,-774.36,0.00020997,2]
[328392321,1717327832840,-1090.5,0.00020997,2]
[328392322,1717327832849,-500.0,0.00020997,2]
[328392323,1717327832859,-500.0,0.00020997,2]
[328392324,1717327832867,-500.0,0.00020997,2]
[328392325,1717327832877,-3173.85,0.00020997,2]
[328392326,1717327832886,-500.0,0.00020997,2]
[328392327,1717327832895,-263.79994372,0.00020997,2]
[328392328,1717327832904,-266.048378,0.00020997,2]
[328392329,1717327832913,-500.0,0.00020997,2]
[328392330,1717327832922,-500.0,0.00020997,2]
[328392331,1717327832931,-500.0,0.00020997,2]
[328392332,1717327832940,-4027.29,0.00020997,2]
[328392333,1717327832950,-884.58,0.00020997,2]
[328392334,1717327832959,-994.27,0.00020997,2]
[328392335,1717327832968,-1570.08,0.00020997,2]
[328392336,1717327832977,-500.0,0.00020997,2]
[328392337,1717327832986,-589.32,0.00020997,2]
[328392338,1717327832996,-16252.51,0.00020997,2]
[328392339,1717327833005,-2714.14638306,0.00020997,2]
[328392347,1717327838799,-898.78971019,0.00020997,7]
[328392348,1717327838808,-1169.62442848,0.00020997,2]
[328392396,1717327860592,291.77473267,0.00015747,2]
[328392397,1717327867926,156.73715766,9.999e-05,2]
[328392398,1717327886635,551.75765254,9.999e-05,2]
[328392399,1717327889725,1499.56203368,9.999e-05,2]
[328392400,1717327907254,164.43840834,9.999e-05,2]
[328392401,1717327956590,154.98450155,9.999e-05,2]
[328392402,1717327960164,154.98450155,9.999e-05,2]
[328392403,1717327963436,181.79671796,9.999e-05,2]
[328392405,1717327983307,1341.53230163,9.999e-05,2]
[328392415,1717328320562,1154.21657296,9.999e-05,2]
[328392416,1717328389741,275.26380321,0.000165,2]
[328392437,1717328583867,1127.51757744,9.999e-05,2]
[328392469,1717328968242,250.0,0.00017258,2]
[328392474,1717328995071,529.60975391,9.999e-05,2]
[328392478,1717329028214,275.26380321,0.000165,2]
[328392529,1717329039361,-297.0229675,0.00018159,2]
[328392530,1717329039372,-215.95975088,0.00018256,2]
[328392531,1717329039383,-1871.01679575,0.00018256,2]
[328392532,1717329039395,-528.71989861,0.00018256,2]
[328392533,1717329039407,-3776.33196445,0.00018257,2]
[328392534,1717329039419,-38099.39164719,0.00018258,2]
[328392535,1717329039430,-572.46307739,0.00018259,7]
[328392536,1717329039443,-24900.0,0.00018259,2]
[328392537,1717329039469,-315.790396,0.00018259,2]
[328392538,1717329039486,-3044.2807967,0.00018477,2]
[328392539,1717329039500,-231.02643144,0.000189,2]
[328392540,1717329039514,-545.09,0.00019178,2]
[328392541,1717329039527,-500.0,0.00019178,2]
[328392542,1717329039540,-1138.15,0.00019178,2]
[328392543,1717329039553,-1236.92,0.00019178,2]
[328392544,1717329039569,-500.0,0.00019178,2]
[328392545,1717329039581,-720.06,0.00019178,2]
[328392546,1717329039594,-1045.07,0.00019178,2]
[328392547,1717329039606,-309.29677034,0.00019178,2]
[328392548,1717329039619,-167.22594915,0.00019178,2]
[328392549,1717329039632,-920.78,0.00019178,2]
[328392550,1717329039646,-500.0,0.00019178,2]
[328392551,1717329039660,-500.0,0.00019178,2]
[328392552,1717329039673,-500.0,0.00019178,2]
[328392553,1717329039685,-500.0,0.00019178,2]
[328392554,1717329039697,-500.0,0.00019178,2]
[328392555,1717329039709,-3041.61,0.00019178,2]
[328392556,1717329039720,-500.0,0.00019178,2]
[328392557,1717329039732,-500.0,0.00019178,2]
[328392558,1717329039744,-434.85688956,0.00019178,2]
[328392559,1717329039755,-500.0,0.00019178,2]
[328392560,1717329039766,-500.0,0.00019178,2]
[328392561,1717329039777,-500.0,0.00019178,2]
[328392562,1717329039788,-500.0,0.00019178,2]
[328392563,1717329039800,-500.0,0.00019178,2]
[328392564,1717329039814,-3859.49,0.00019178,2]
[328392565,1717329039825,-500.0,0.00019178,2]
[328392566,1717329039837,-549.74,0.00019178,2]
[328392567,1717329039847,-1504.66,0.00019178,2]
[328392568,1717329039856,-500.0,0.00019178,2]
[328392569,1717329039866,-15703.49,0.00019178,2]
[328392570,1717329039875,-15575.32,0.00019178,2]
[328392571,1717329039884,-676.56,0.00019178,2]
[328392572,1717329039894,-1693.39,0.00019178,2]
[328392573,1717329039904,-2166.86,0.00019178,2]
[328392574,1717329039914,-4291.74,0.00019178,2]
[328392575,1717329039923,-500.0,0.00019178,2]
[328392576,1717329039932,-151.0,0.00019178,2]
[328392577,1717329039941,-151.0,0.00019178,2]
[328392578,1717329039951,-151.0,0.00019178,2]
[328392579,1717329039960,-847.99,0.00019178,2]
[328392580,1717329039970,-723.94,0.00019178,2]
[328392584,1717329040251,-500.0,0.00019178,2]
[328392585,1717329040270,-500.0,0.00019178,2]
[328392586,1717329040279,-500.0,0.00019178,2]
[328392587,1717329040288,-500.0,0.00019178,2]
[328392588,1717329040298,-400.0,0.00019178,7]
[328392589,1717329040309,-173.395065,0.00019424,2]
[328392590,1717329040320,-274.4473688,0.00019451,2]
[328392591,1717329040329,-545.09,0.00019452,2]
[328392592,1717329040338,-500.0,0.00019452,2]
[328392593,1717329040347,-1138.15,0.00019452,2]
[328392594,1717329040356,-1236.92,0.00019452,2]
[328392595,1717329040365,-500.0,0.00019452,2]
[328392596,1717329040375,-720.06,0.00019452,2]
[328392597,1717329040385,-1045.07,0.00019452,2]
[328392598,1717329040395,-920.78,0.00019452,2]
[328392599,1717329040406,-500.0,0.00019452,2]
[328392600,1717329040417,-500.0,0.00019452,2]
[328392601,1717329040426,-500.0,0.00019452,2]
[328392602,1717329040435,-500.0,0.00019452,2]
[328392603,1717329040444,-500.0,0.00019452,2]
[328392604,1717329040453,-3041.61,0.00019452,2]
[328392605,1717329040462,-500.0,0.00019452,2]
[328392606,1717329040471,-318.59640092,0.00019452,2]
[328392607,1717329040480,-542.51373649,0.00019452,2]
[328392608,1717329040490,-151.0,0.00019452,2]
[328392609,1717329040499,-151.0,0.00019452,2]
[328392610,1717329040508,-500.0,0.00019452,2]
[328392611,1717329040517,-500.0,0.00019452,2]
[328392612,1717329040527,-500.0,0.00019452,2]
[328392613,1717329040536,-500.0,0.00019452,2]
[328392614,1717329040546,-3859.49,0.00019452,2]
[328392615,1717329040555,-151.0,0.00019452,2]
[328392616,1717329040566,-151.0,0.00019452,2]
[328392617,1717329040575,-500.0,0.00019452,2]
[328392619,1717329040585,-549.74,0.00019452,2]
[328392620,1717329040594,-1504.66,0.00019452,2]
[328392622,1717329040604,-500.0,0.00019452,2]
[328392624,1717329040614,-15703.49,0.00019452,2]
[328392626,1717329040623,-15575.32,0.00019452,2]
[328392628,1717329040633,-676.56,0.00019452,2]
[328392631,1717329040645,-1693.39,0.00019452,2]
[328392633,1717329040655,-2166.86,0.00019452,2]
[328392634,1717329040666,-4291.74,0.00019452,2]
[328392636,1717329040675,-500.0,0.00019452,2]
[328392638,1717329040685,-151.0,0.00019452,2]
[328392640,1717329040695,-151.0,0.00019452,2]
[328392641,1717329040705,-151.0,0.00019452,2]